lending/lending_fUSD_20250122
["ID","MTS","AMOUNT","RATE_DAILY","PERIOD"]
[350032785,1737582646013,-1086.51,0.00019724,2]
[350032786,1737582646023,-500.0,0.00019724,2]
[350032787,1737582646034,-1909.55,0.00019724,2]
[350032788,1737582646045,-755.72,0.00019724,2]
[350032789,1737582646055,-447.01138585,0.00019724,2]
[350032790,1737582646067,-1524.12,0.00019724,2]
[350032791,1737582646077,-1582.46,0.00019724,2]
[350032792,1737582646086,-641.34,0.00019724,2]
[350032793,1737582646095,-500.0,0.00019724,2]
[350032794,1737582646104,-500.0,0.00019724,2]
[350032795,1737582646114,-599.4,0.00019724,2]
[350032796,1737582646123,-500.0,0.00019724,2]
[350032797,1737582646132,-1599.84,0.00019724,2]
[350032798,1737582646142,-500.0,0.00019724,2]
[350032799,1737582646151,-806.64,0.00019724,2]
[350032800,1737582646161,-500.0,0.00019724,2]
[350032801,1737582646170,-500.0,0.00019724,2]
[350032802,1737582646180,-500.0,0.00019724,2]
[350032803,1737582646190,-500.0,0.00019724,2]
[350032804,1737582646199,-1166.27,0.00019724,2]
[350032805,1737582646208,-500.0,0.00019725,2]
[350032806,1737582646219,-500.0,0.00019725,2]
[350032807,1737582646228,-500.0,0.00019725,2]
[350032808,1737582646237,-500.0,0.00019725,2]
[350032809,1737582646246,-775.15,0.00019725,2]
[350032810,1737582646255,-500.0,0.00019725,2]
[350032811,1737582646264,-500.0,0.00019725,2]
[350032812,1737582646274,-500.0,0.00019725,2]
[350032813,1737582646283,-500.0,0.00019725,2]
[350032814,1737582646318,-500.0,0.00019725,2]
[350032815,1737582646329,-500.0,0.00019725,2]
[350032816,1737582646338,-500.0,0.00019725,2]
[350032817,1737582646347,-500.0,0.00019725,2]
[350032818,1737582646356,-500.0,0.00019725,2]
[350032819,1737582646366,-500.0,0.00019725,2]
[350032820,1737582646375,-500.0,0.00019725,2]
[350032821,1737582646384,-500.0,0.00019725,2]
[350032822,1737582646394,-500.0,0.00019725,2]
[350032823,1737582646403,-544.03,0.00019725,2]
[350032824,1737582646413,-500.0,0.00019725,2]
[350032825,1737582646422,-500.0,0.00019725,2]
[350032826,1737582646432,-500.0,0.00019725,2]
[350032827,1737582646441,-500.0,0.00019725,2]
[350032828,1737582646451,-500.0,0.00019725,2]
[350032829,1737582646460,-532.05,0.00019725,2]
[350032830,1737582646470,-500.0,0.00019725,2]
[350032831,1737582646482,-500.0,0.00019725,2]
[350032832,1737582646497,-500.0,0.00019725,2]
[350032834,1737582646506,-500.0,0.00019725,2]
[350032835,1737582646515,-654.33,0.00019725,2]
[350032836,1737582646526,-500.0,0.00019725,2]
[350032837,1737582646536,-500.0,0.00019725,2]
[350032838,1737582646545,-525.48,0.00019725,2]
[350032839,1737582646555,-535.93,0.00019725,2]
[350032840,1737582646566,-500.0,0.00019725,2]
[350032842,1737582646575,-500.0,0.00019725,2]
[350032843,1737582646584,-519.07,0.00019725,2]
[350032844,1737582646594,-500.0,0.00019725,2]
[350032846,1737582646604,-500.0,0.00019725,2]
[350032848,1737582646613,-500.0,0.00019725,2]
[350032849,1737582646622,-500.0,0.00019725,2]
[350032850,1737582646632,-500.0,0.00019725,2]
[350032852,1737582646642,-500.0,0.00019725,2]
[350032853,1737582646652,-576.41578942,0.00019725,2]
[350032854,1737582646663,-500.0,0.00019725,2]
[350032855,1737582646672,-706.77,0.00019725,2]
[350032856,1737582646682,-500.0,0.00019725,2]
[350032857,1737582646692,-1047.6,0.00019725,2]
[350032858,1737582646702,-619.66,0.00019725,2]
[350032859,1737582646712,-500.0,0.00019725,2]
[350032860,1737582646721,-1755.56,0.00019725,2]
[350032861,1737582646731,-820.66,0.00019725,2]
[350032862,1737582646740,-500.0,0.00019725,2]
[350032863,1737582646749,-1880.99,0.00019725,2]
[350032864,1737582646759,-634.6,0.00019725,2]
[350032865,1737582646768,-636.25,0.00019725,2]
[350032866,1737582646777,-828.27,0.00019725,2]
[350032867,1737582646787,-500.0,0.00019725,2]
[350032868,1737582646797,-745.59,0.00019725,2]
[350032869,1737582646806,-567.17,0.00019725,2]
[350032870,1737582646817,-898.0,0.00019725,2]
[350032871,1737582646827,-500.0,0.00019725,2]
[350032872,1737582646836,-500.49,0.00019725,2]
[350032873,1737582646846,-1308.24,0.00019725,2]
[350032874,1737582646856,-3586.0,0.00019725,2]
[350032875,1737582646867,-871.05,0.00019725,2]
[350032876,1737582646877,-2659.05,0.00019725,2]
[350032877,1737582646888,-2076.12,0.00019725,2]
[350032878,1737582646910,-500.0,0.00019725,2]
[350032879,1737582646921,-500.0,0.00019725,2]
[350032880,1737582646930,-3835.2,0.00019725,2]
[350032881,1737582646940,-500.0,0.00019725,2]
[350032882,1737582646950,-1173.99,0.00019725,2]
[350032883,1737582646959,-500.0,0.00019725,2]
[350032884,1737582646970,-500.0,0.00019725,2]
[350032885,1737582646979,-1365.96,0.00019725,2]
[350032886,1737582646988,-3081.03,0.00019725,2]
[350032887,1737582646998,-944.76,0.00019725,2]
[350032888,1737582647007,-500.0,0.00019725,2]
[350032889,1737582647133,-500.0,0.00019725,2]
[350032890,1737582647163,-1120.27,0.00019725,2]
[350032891,1737582647172,-500.0,0.00019725,2]
[350032892,1737582647182,-787.15,0.00019725,2]
[350032893,1737582647191,-905.06,0.00019725,2]
[350032894,1737582647200,-500.0,0.00019725,2]
[350032895,1737582647210,-500.0,0.00019725,2]
[350032896,1737582647220,-500.0,0.00019725,2]
[350032897,1737582647230,-1803.41,0.00019725,2]
[350032898,1737582647239,-500.0,0.00019725,2]
[350032899,1737582647248,-500.0,0.00019725,2]
[350032900,1737582647258,-1886.14,0.00019725,2]
[350032901,1737582647278,-500.0,0.00019725,2]
[350032902,1737582647288,-752.7,0.00019725,2]
[350032903,1737582647297,-500.0,0.00019725,2]
[350032904,1737582647306,-822.14,0.00019725,2]
[350032905,1737582647315,-500.0,0.00019725,2]
[350032906,1737582647324,-895.74,0.00019725,2]
[350032907,1737582647334,-500.0,0.00019725,2]
[350032908,1737582647343,-970.83,0.00019725,2]
[350032909,1737582647352,-500.0,0.00019725,2]
[350032910,1737582647361,-1257.37,0.00019725,2]
[350032911,1737582647371,-500.0,0.00019725,2]
[350032912,1737582647380,-500.0,0.00019725,2]
[350032913,1737582647389,-1280.86,0.00019725,2]
[350032914,1737582647398,-500.0,0.00019725,2]
[350032915,1737582647407,-500.0,0.00019725,2]
[350032916,1737582647416,-500.0,0.00019725,2]
[350032917,1737582647426,-500.0,0.00019725,2]
[350032918,1737582647435,-500.0,0.00019725,2]
[350032919,1737582647444,-500.0,0.00019725,2]
[350032920,1737582647454,-500.0,0.00019725,2]
[350032921,1737582647463,-1008.9,0.00019725,2]
[350032922,1737582647472,-500.0,0.00019725,2]
[350032923,1737582647485,-1000.0,0.00019725,2]
[350032924,1737582647495,-500.0,0.00019725,2]
[350032925,1737582647504,-618.74,0.00019725,2]
[350032926,1737582647513,-1101.05,0.00019725,2]
[350032927,1737582647524,-500.0,0.00019725,2]
[350032928,1737582647533,-500.0,0.00019725,2]
[350032929,1737582647543,-500.0,0.00019725,2]
[350032930,1737582647552,-500.0,0.00019725,2]
[350032931,1737582647563,-538.17,0.00019725,2]
[350032932,1737582647573,-500.0,0.00019725,2]
[350032933,1737582647583,-1611.43,0.00019725,2]
[350032934,1737582647592,-500.0,0.00019726,2]
[350032935,1737582647602,-500.0,0.00019726,2]
[350032936,1737582647611,-479.81998464,0.00019726,2]
[350032937,1737582647620,-500.0,0.00019726,2]
[350032938,1737582647630,-500.0,0.00019726,2]
[350032939,1737582647639,-500.0,0.00019726,2]
[350032940,1737582647649,-500.0,0.00019726,2]
[350032941,1737582647659,-500.0,0.00019726,2]
[350032942,1737582647668,-500.0,0.00019726,2]
[350032943,1737582647678,-500.0,0.00019726,2]
[350032944,1737582647689,-500.0,0.00019726,2]
[350032945,1737582647698,-500.0,0.00019726,2]
[350032946,1737582647707,-500.0,0.00019726,2]
[350032947,1737582647718,-500.0,0.00019726,2]
[350032948,1737582647728,-470.33574641,0.00019726,2]
[350032949,1737582647737,-500.0,0.00019726,2]
[350032950,1737582647747,-500.0,0.00019726,2]
[350032951,1737582647757,-500.0,0.00019726,2]
[350032952,1737582647767,-500.0,0.00019726,2]
[350032953,1737582647776,-500.0,0.00019726,2]
[350032954,1737582647786,-500.0,0.00019726,2]
[350032955,1737582647795,-500.0,0.00019726,2]
[350032956,1737582647804,-500.0,0.00019726,2]
[350032957,1737582647814,-500.0,0.00019726,2]
[350032958,1737582647823,-500.0,0.00019726,2]
[350032959,1737582647832,-500.0,0.00019726,2]
[350032960,1737582647841,-500.0,0.00019726,2]
[350032961,1737582647851,-520.79,0.00019726,2]
[350032962,1737582647860,-500.0,0.00019726,2]
[350032963,1737582647869,-500.0,0.00019726,2]
[350032964,1737582647880,-500.0,0.00019726,2]
[350032965,1737582647893,-500.0,0.00019726,2]
[350032966,1737582647902,-500.0,0.00019726,2]
[350032967,1737582647911,-500.0,0.00019726,2]
[350032968,1737582647921,-500.0,0.00019726,2]
[350032969,1737582647931,-500.0,0.00019726,2]
[350032970,1737582647940,-500.0,0.00019726,2]
[350032971,1737582647949,-500.0,0.00019726,2]
[350032972,1737582647958,-320.05294947,0.00019726,2]
[350032973,1737582647969,-500.0,0.00019726,2]
[350032974,1737582647978,-500.0,0.00019726,2]
[350032975,1737582647987,-500.0,0.00019726,2]
[350032976,1737582647997,-500.0,0.00019726,2]
[350032977,1737582648006,-500.0,0.00019726,2]
[350032978,1737582648016,-500.0,0.00019726,2]
[350032979,1737582648025,-500.0,0.00019726,2]
[350032980,1737582648035,-500.0,0.00019726,2]
[350032981,1737582648044,-500.0,0.00019726,2]
[350032982,1737582648053,-500.0,0.00019726,2]
[350032983,1737582648063,-500.0,0.00019726,2]
[350032984,1737582648072,-500.0,0.00019726,2]
[350032985,1737582648081,-500.0,0.00019726,2]
[350032986,1737582648090,-500.0,0.00019726,2]
[350032987,1737582648099,-500.0,0.00019726,2]
[350032988,1737582648107,-500.0,0.00019726,2]
[350032989,1737582648118,-500.0,0.00019726,2]
[350032990,1737582648129,-500.0,0.00019726,2]
[350032991,1737582648138,-500.0,0.00019726,2]
[350032992,1737582648147,-500.0,0.00019726,2]
[350032993,1737582648155,-500.0,0.00019726,2]
[350032994,1737582648164,-500.0,0.00019726,2]
[350032995,1737582648173,-500.0,0.00019726,2]
[350032996,1737582648182,-374.57035135,0.00019726,2]
[350032997,1737582648191,-500.0,0.00019726,2]
[350032998,1737582648201,-500.0,0.00019726,2]
[350032999,1737582648210,-500.0,0.00019726,2]
[350033000,1737582648220,-500.0,0.00019726,2]
[350033001,1737582648229,-500.0,0.00019726,2]
[350033002,1737582648238,-500.0,0.00019726,2]
[350033003,1737582648247,-500.0,0.00019726,2]
[350033004,1737582648257,-500.0,0.00019726,2]
[350033005,1737582648266,-500.0,0.00019726,2]
[350033006,1737582648275,-500.0,0.00019726,2]
[350033007,1737582648284,-500.0,0.00019726,2]
[350033008,1737582648294,-709.47,0.00019726,2]
[350033009,1737582648303,-500.0,0.00019726,2]
[350033010,1737582648312,-500.0,0.00019726,2]
[350033011,1737582648321,-500.0,0.00019726,2]
[350033012,1737582648331,-500.0,0.00019726,2]
[350033013,1737582648340,-500.0,0.00019726,2]
[350033014,1737582648349,-473.18882447,0.00019726,2]
[350033015,1737582648358,-500.0,0.00019726,2]
[350033016,1737582648367,-500.0,0.00019726,2]
[350033017,1737582648376,-500.0,0.00019726,2]
[350033018,1737582648385,-500.0,0.00019726,2]
[350033019,1737582648395,-500.0,0.00019726,2]
[350033020,1737582648404,-500.0,0.00019726,2]
[350033021,1737582648414,-181.17,0.00019787,2]
[350033022,1737582648423,-500.0,0.00019789,2]
[350033023,1737582648433,-500.0,0.00019789,2]
[350033024,1737582648442,-10076.28778513,0.00019878,2]
[350033025,1737582648451,-622.14,0.00019899,2]
[350033026,1737582648460,-500.0,0.00019899,2]
[350033027,1737582648470,-1045.93,0.00019899,2]
[350033028,1737582648481,-500.0,0.00019899,2]
[350033029,1737582648493,-500.0,0.00019899,2]
[350033030,1737582648503,-1248.85,0.00019899,2]
[350033031,1737582648512,-836.46,0.00019899,2]
[350033032,1737582648523,-897.56,0.00019899,2]
[350033033,1737582648532,-695.58,0.00019899,2]
[350033034,1737582648542,-500.0,0.00019899,2]
[350033035,1737582648551,-500.0,0.00019899,2]
[350033036,1737582648563,-500.0,0.00019899,2]
[350033037,1737582648572,-1264.86,0.00019899,2]
[350033038,1737582648582,-1369.72,0.00019899,2]
[350033039,1737582648591,-500.0,0.00019899,2]
[350033040,1737582648601,-500.0,0.00019899,2]
[350033041,1737582648610,-1428.38,0.00019899,2]
[350033042,1737582648619,-500.0,0.00019899,2]
[350033043,1737582648629,-528.41,0.00019899,2]
[350033044,1737582648638,-500.0,0.00019899,2]
[350033045,1737582648648,-360.76924437,0.00019899,2]
[350033046,1737582648657,-1588.41,0.00019899,2]
[350033047,1737582648667,-500.0,0.00019899,2]
[350033048,1737582648677,-1038.23,0.00019899,2]
[350033049,1737582648686,-597.06,0.00019899,2]
[350033050,1737582648696,-500.0,0.00019899,2]
[350033051,1737582648705,-627.14999203,0.00019936,2]
[350033052,1737582648714,-500.0,0.00019998,2]
[350033053,1737582648724,-500.0,0.00019998,2]
[350033054,1737582648733,-500.0,0.00019998,2]
[350033055,1737582648743,-639.2096161,0.00019998,2]
[350033056,1737582648752,-500.0,0.00019998,2]
[350033057,1737582648762,-570.181402,0.00019998,2]
[350033058,1737582648772,-1249.58,0.00019998,2]
[350033059,1737582648782,-500.0,0.00019998,2]
[350033060,1737582648791,-500.0,0.00019998,2]
[350033061,1737582648800,-903.97,0.00019998,2]
[350033062,1737582648810,-500.0,0.00019998,2]
[350033063,1737582648819,-500.0,0.00019998,2]
[350033064,1737582648828,-555.7,0.00019998,2]
[350033065,1737582648837,-578.24,0.00019998,2]
[350033066,1737582648847,-1270.63,0.00019998,2]
[350033067,1737582648856,-500.0,0.00019998,2]
[350033068,1737582648866,-500.0,0.00019998,2]
[350033069,1737582648875,-883.62,0.00019998,2]
[350033070,1737582648884,-500.0,0.00019998,2]
[350033071,1737582648893,-1086.51,0.00019998,2]
[350033072,1737582648903,-500.0,0.00019998,2]
[350033073,1737582648912,-1909.55,0.00019998,2]
[350033074,1737582648921,-755.72,0.00019998,2]
[350033075,1737582648930,-1524.12,0.00019998,2]
[350033076,1737582648940,-1582.46,0.00019998,2]
[350033077,1737582648949,-641.34,0.00019998,2]
[350033078,1737582648958,-500.0,0.00019998,2]
[350033079,1737582648967,-599.4,0.00019998,2]
[350033080,1737582648976,-500.0,0.00019998,2]
[350033081,1737582648986,-1599.84,0.00019998,2]
[350033082,1737582648995,-500.0,0.00019998,2]
[350033083,1737582649004,-806.64,0.00019998,2]
[350033084,1737582649014,-500.0,0.00019998,2]
[350033085,1737582649023,-500.0,0.00019998,2]
[350033086,1737582649032,-500.0,0.00019998,2]
[350033087,1737582649042,-1166.27,0.00019998,2]
[350033088,1737582649060,-500.0,0.00019999,2]
[350033089,1737582649070,-500.0,0.00019999,2]
[350033090,1737582649079,-500.0,0.00019999,2]
[350033091,1737582649088,-500.0,0.00019999,2]
[350033092,1737582649098,-775.15,0.00019999,2]
[350033093,1737582649108,-500.0,0.00019999,2]
[350033094,1737582649120,-631.07028792,0.00019999,2]
[350033095,1737582649129,-500.0,0.00019999,2]
[350033096,1737582649139,-500.0,0.00019999,2]
[350033097,1737582649149,-500.0,0.00019999,2]
[350033098,1737582649158,-500.0,0.00019999,2]
[350033099,1737582649168,-500.0,0.00019999,2]
[350033100,1737582649177,-500.0,0.00019999,2]
[350033101,1737582649186,-500.0,0.00019999,2]
[350033102,1737582649195,-500.0,0.00019999,2]
[350033103,1737582649205,-500.0,0.00019999,2]
[350033104,1737582649214,-544.03,0.00019999,2]
[350033105,1737582649223,-500.0,0.00019999,2]
[350033106,1737582649233,-500.0,0.00019999,2]
[350033107,1737582649242,-500.0,0.00019999,2]
[350033108,1737582649251,-500.0,0.00019999,2]
[350033109,1737582649261,-532.05,0.00019999,2]
[350033110,1737582649270,-500.0,0.00019999,2]
[350033111,1737582649279,-500.0,0.00019999,2]
[350033112,1737582649288,-401.38616258,0.00019999,2]
[350033113,1737582649299,-500.0,0.00019999,2]
[350033114,1737582649308,-654.33,0.00019999,2]
[350033115,1737582649317,-500.0,0.00019999,2]
[350033116,1737582649326,-500.0,0.00019999,2]
[350033117,1737582649335,-525.48,0.00019999,2]
[350033118,1737582649344,-535.93,0.00019999,2]
[350033119,1737582649354,-500.0,0.00019999,2]
[350033120,1737582649364,-500.0,0.00019999,2]
[350033121,1737582649374,-519.07,0.00019999,2]
[350033122,1737582649383,-500.0,0.00019999,2]
[350033123,1737582649393,-500.0,0.00019999,2]
[350033124,1737582649403,-500.0,0.00019999,2]
[350033125,1737582649413,-500.0,0.00019999,2]
[350033126,1737582649423,-500.0,0.00019999,2]
[350033127,1737582649432,-500.0,0.00019999,2]
[350033128,1737582649443,-500.0,0.00019999,2]
[350033129,1737582649454,-706.77,0.00019999,2]
[350033130,1737582649465,-500.0,0.00019999,2]
[350033131,1737582649475,-1047.6,0.00019999,2]
[350033132,1737582649487,-619.66,0.00019999,2]
[350033133,1737582649496,-500.0,0.00019999,2]
[350033134,1737582649506,-1755.56,0.00019999,2]
[350033135,1737582649515,-820.66,0.00019999,2]
[350033136,1737582649562,-500.0,0.00019999,2]
[350033137,1737582649572,-1880.99,0.00019999,2]
[350033138,1737582649581,-634.6,0.00019999,2]
[350033139,1737582649590,-636.25,0.00019999,2]
[350033140,1737582649599,-828.27,0.00019999,2]
[350033141,1737582649609,-502.99020376,0.00019999,2]
[350033142,1737582649618,-745.59,0.00019999,2]
[350033143,1737582649627,-567.17,0.00019999,2]
[350033144,1737582649637,-898.0,0.00019999,2]
[350033145,1737582649646,-500.0,0.00019999,2]
[350033146,1737582649658,-500.49,0.00019999,2]
[350033147,1737582649667,-1308.24,0.00019999,2]
[350033148,1737582649676,-3586.0,0.00019999,2]
[350033149,1737582649686,-871.05,0.00019999,2]
[350033150,1737582649695,-2659.05,0.00019999,2]
[350033151,1737582649705,-2076.12,0.00019999,2]
[350033152,1737582649715,-500.0,0.00019999,2]
[350033153,1737582649725,-500.0,0.00019999,2]
[350033154,1737582649735,-3835.2,0.00019999,2]
[350033155,1737582649744,-500.0,0.00019999,2]
[350033156,1737582649753,-1173.99,0.00019999,2]
[350033157,1737582649762,-500.0,0.00019999,2]
[350033158,1737582649772,-500.0,0.00019999,2]
[350033159,1737582649781,-1365.96,0.00019999,2]
[350033160,1737582649791,-3081.03,0.00019999,2]
[350033161,1737582649801,-944.76,0.00019999,2]
[350033162,1737582649811,-500.0,0.00019999,2]
[350033163,1737582649820,-500.0,0.00019999,2]
[350033164,1737582649830,-1120.27,0.00019999,2]
[350033165,1737582649839,-500.0,0.00019999,2]
[350033166,1737582649848,-787.15,0.00019999,2]
[350033167,1737582649857,-905.06,0.00019999,2]
[350033168,1737582649866,-500.0,0.00019999,2]
[350033169,1737582649875,-500.0,0.00019999,2]
[350033170,1737582649884,-500.0,0.00019999,2]
[350033171,1737582649894,-1803.41,0.00019999,2]
[350033172,1737582649903,-500.0,0.00019999,2]
[350033173,1737582649912,-1886.14,0.00019999,2]
[350033174,1737582649921,-500.0,0.00019999,2]
[350033175,1737582649930,-500.0,0.00019999,2]
[350033176,1737582649939,-752.7,0.00019999,2]
[350033177,1737582649947,-500.0,0.00019999,2]
[350033178,1737582649956,-822.14,0.00019999,2]
[350033179,1737582649966,-895.74,0.00019999,2]
[350033180,1737582649975,-970.83,0.00019999,2]
[350033181,1737582649984,-345.21233891,0.00019999,2]
[350033182,1737582649993,-500.0,0.00019999,2]
[350033183,1737582650002,-1257.37,0.00019999,2]
[350033184,1737582650012,-500.0,0.00019999,2]
[350033185,1737582650021,-500.0,0.00019999,2]
[350033186,1737582650030,-1280.86,0.00019999,2]
[350033187,1737582650039,-326.89316965,0.00019999,2]
[350033188,1737582650048,-500.0,0.00019999,2]
[350033189,1737582650057,-500.0,0.00019999,2]
[350033190,1737582650066,-500.0,0.00019999,2]
[350033191,1737582650075,-500.0,0.00019999,2]
[350033192,1737582650084,-500.0,0.00019999,2]
[350033193,1737582650093,-500.0,0.00019999,2]
[350033194,1737582650102,-1008.9,0.00019999,2]
[350033195,1737582650111,-588.47,0.00019999,2]
[350033196,1737582650120,-1000.0,0.00019999,2]
[350033197,1737582650128,-500.0,0.00019999,2]
[350033198,1737582650137,-618.74,0.00019999,2]
[350033199,1737582650146,-1101.05,0.00019999,2]
[350033200,1737582650155,-238.34715164,0.00019999,2]
[350033201,1737582650164,-500.0,0.00019999,2]
[350033202,1737582650173,-500.0,0.00019999,2]
[350033203,1737582650183,-500.0,0.00019999,2]
[350033204,1737582650191,-538.17,0.00019999,2]
[350033205,1737582650200,-500.0,0.00019999,2]
[350033206,1737582650209,-1611.43,0.00019999,2]
[350033207,1737582650220,-500.0,0.0002,2]
[350033208,1737582650229,-560.14010724,0.0002,2]
[350033209,1737582650239,-500.0,0.0002,2]
[350033210,1737582650248,-500.0,0.0002,2]
[350033211,1737582650257,-500.0,0.0002,2]
[350033212,1737582650266,-500.0,0.0002,2]
[350033213,1737582650275,-500.0,0.0002,2]
[350033214,1737582650284,-500.0,0.0002,2]
[350033215,1737582650293,-500.0,0.0002,2]
[350033216,1737582650303,-500.0,0.0002,2]
[350033217,1737582650312,-500.0,0.0002,2]
[350033218,1737582650321,-500.0,0.0002,2]
[350033219,1737582650331,-500.0,0.0002,2]
[350033220,1737582650340,-500.0,0.0002,2]
[350033221,1737582650350,-500.0,0.0002,2]
[350033222,1737582650359,-500.0,0.0002,2]
[350033223,1737582650372,-500.0,0.0002,2]
[350033224,1737582650395,-500.0,0.0002,2]
[350033225,1737582650405,-500.0,0.0002,2]
[350033226,1737582650414,-500.0,0.0002,2]
[350033227,1737582650424,-500.0,0.0002,2]
[350033228,1737582650433,-500.0,0.0002,2]
[350033229,1737582650442,-595.42228815,0.0002,2]
[350033230,1737582650451,-500.0,0.0002,2]
[350033231,1737582650460,-520.79,0.0002,2]
[350033232,1737582650470,-500.0,0.0002,2]
[350033233,1737582650480,-500.0,0.0002,2]
[350033234,1737582650493,-500.0,0.0002,2]
[350033235,1737582650503,-500.0,0.0002,2]
[350033236,1737582650512,-500.0,0.0002,2]
[350033237,1737582650521,-500.0,0.0002,2]
[350033238,1737582650533,-500.0,0.0002,2]
[350033239,1737582650542,-500.0,0.0002,2]
[350033240,1737582650551,-586.29715844,0.0002,2]
[350033241,1737582650562,-500.0,0.0002,2]
[350033242,1737582650571,-500.0,0.0002,2]
[350033243,1737582650580,-500.0,0.0002,2]
[350033244,1737582650590,-500.0,0.0002,2]
[350033245,1737582650599,-500.0,0.0002,2]
[350033246,1737582650608,-500.0,0.0002,2]
[350033247,1737582650617,-500.0,0.0002,2]
[350033248,1737582650626,-500.0,0.0002,2]
[350033249,1737582650634,-500.0,0.0002,2]
[350033250,1737582650644,-500.0,0.0002,2]
[350033251,1737582650652,-500.0,0.0002,2]
[350033252,1737582650661,-500.0,0.0002,2]
[350033253,1737582650671,-500.0,0.0002,2]
[350033254,1737582650680,-500.0,0.0002,2]
[350033255,1737582650689,-500.0,0.0002,2]
[350033256,1737582650698,-500.0,0.0002,2]
[350033257,1737582650707,-159.04718731,0.0002,2]
[350033258,1737582650716,-500.0,0.0002,2]
[350033259,1737582650726,-500.0,0.0002,2]
[350033260,1737582650735,-500.0,0.0002,2]
[350033261,1737582650744,-500.0,0.0002,2]
[350033262,1737582650753,-500.0,0.0002,2]
[350033263,1737582650762,-500.0,0.0002,2]
[350033264,1737582650771,-500.0,0.0002,2]
[350033265,1737582650780,-500.0,0.0002,2]
[350033266,1737582650789,-500.0,0.0002,2]
[350033267,1737582650798,-500.0,0.0002,2]
[350033268,1737582650807,-500.0,0.0002,2]
[350033269,1737582650817,-500.0,0.0002,2]
[350033270,1737582650827,-500.0,0.0002,2]
[350033271,1737582650836,-649.06690135,0.0002,2]
[350033272,1737582650845,-500.0,0.0002,2]
[350033273,1737582650854,-709.47,0.0002,2]
[350033274,1737582650863,-500.0,0.0002,2]
[350033275,1737582650872,-500.0,0.0002,2]
[350033276,1737582650881,-500.0,0.0002,2]
[350033277,1737582650890,-500.0,0.0002,2]
[350033278,1737582650899,-500.0,0.0002,2]
[350033279,1737582650908,-500.0,0.0002,2]
[350033280,1737582650918,-500.0,0.0002,2]
[350033281,1737582650927,-500.0,0.0002,2]
[350033282,1737582650936,-500.0,0.0002,2]
[350033283,1737582650945,-500.0,0.0002,2]
[350033284,1737582650954,-500.0,0.0002,2]
[350033285,1737582650964,-500.0,0.00020063,2]
[350033286,1737582650973,-500.0,0.00020063,2]
[350033287,1737582650982,-10076.28778513,0.00020131,2]
[350033288,1737582650991,-254.09,0.00020132,2]
[350033289,1737582651000,-622.14,0.00020173,2]